bitfinex/quotes_SOLUSD_20250815
["timestamp","ask_amount","ask_price","bid_price","bid_amount"]
[1755272550026,101.90505324,186.37,186.36,1e-08]
[1755272551040,101.90505324,186.37,186.34,0.03]
[1755272551343,26.0,186.32,186.3,0.1]
[1755272551633,69.8193828,186.31,186.3,0.1]
[1755272551799,75.90678122,186.31,186.3,0.1]
[1755272552315,89.47994845,186.31,186.3,1e-08]
[1755272552507,75.90678122,186.31,186.3,1e-08]
[1755272552702,89.47994845,186.31,186.3,1e-08]
[1755272552904,15.10621557,186.23,186.15,0.72]
[1755272553133,41.14,186.22,186.15,0.72]
[1755272553343,41.10621557,186.21,186.15,0.72]
[1755272553505,41.14,186.2,186.12,0.72]
[1755272553705,18.94496845,186.16,186.12,0.72]
[1755272553936,13.57316723,186.16,186.12,0.72]
[1755272554260,41.88,186.15,186.1,0.72]
[1755272554441,13.57316723,186.12,186.07,0.72]
[1755272554742,13.57316723,186.13,186.07,14.29316723]
[1755272555039,13.57316723,186.13,186.05,5.37489922]
[1755272555040,41.16,186.14,186.09,13.57316723]
[1755272555339,13.57316723,186.12,186.08,0.72]
[1755272555547,14.07316723,186.12,186.08,0.72]
[1755272555949,14.07316723,186.12,186.09,0.72]
[1755272555950,0.5,186.12,186.09,0.72]
[1755272556121,13.57316723,186.11,186.06,0.72]
[1755272556322,41.16,186.14,186.06,0.72]
[1755272556521,13.57316723,186.11,186.07,0.72]
[1755272556830,13.57316723,186.11,186.0,26.0]
[1755272556831,13.57316723,186.08,186.04,0.72]
[1755272557037,13.57316723,186.09,186.04,6.09503537]
[1755272557352,5.37239764,186.14,186.04,6.09503537]
[1755272557353,0.72,186.17,186.08,13.57316723]
[1755272557522,15.10621557,186.14,186.04,18.81300569]
[1755272557850,5.3711517,186.18,186.01,5.37605505]
[1755272557851,13.57316723,186.06,186.01,5.37605505]
[1755272558053,41.16,186.08,186.01,5.37605505]
[1755272558349,13.57316723,186.06,186.02,0.72]
[1755272558558,13.57316723,186.07,186.02,0.72]
[1755272558763,41.16,186.08,186.04,0.03]
[1755272559041,0.72,186.07,186.04,0.03]
[1755272559277,15.10621557,186.07,186.04,0.03]
[1755272559548,13.57316723,186.05,186.04,0.03]
[1755272559728,60.10806645,186.05,186.04,0.03]
[1755272559935,47.25489922,186.05,186.04,0.03]
[1755272560113,41.16,186.05,186.04,0.03]
[1755272560314,39.57316723,186.07,186.04,0.03]
[1755272560531,28.6793828,186.05,186.04,0.03]
[1755272560734,29.3993828,186.05,186.04,0.03]
[1755272561031,15.10621557,186.06,186.04,0.03]
[1755272561231,41.18,186.05,186.04,0.03]
[1755272561441,15.10621557,186.09,186.04,0.03]
[1755272561442,15.10621557,186.09,186.04,14.32316723]
[1755272561648,13.57316723,186.16,186.08,13.57316723]
[1755272561853,36.84470899,186.26,186.13,18.94575628]
[1755272561854,0.72,186.2,186.13,18.94575628]
[1755272562150,13.57316723,186.17,186.09,0.72]
[1755272562350,14.29316723,186.18,186.12,13.57316723]
[1755272562547,0.72,186.18,186.12,13.57316723]
[1755272562842,0.72,186.18,186.09,0.72]
[1755272563052,13.57316723,186.12,186.05,0.72]
[1755272563244,13.57316723,186.11,186.04,0.03]
[1755272563456,13.57316723,186.07,186.04,0.03]
[1755272563833,54.75316723,186.06,186.04,0.03]
[1755272564021,41.18,186.06,186.04,0.03]
[1755272564217,54.75316723,186.06,186.04,0.03]
[1755272564458,41.18,186.06,186.04,0.03]
[1755272564838,26.0,186.11,186.05,14.29316723]
[1755272565148,13.57316723,186.07,186.04,0.03]
[1755272565456,13.57316723,186.06,186.04,0.03]
[1755272565760,13.57316723,186.05,186.04,0.03]
[1755272565965,34.76428202,186.05,186.04,0.03]
[1755272566462,41.10621557,186.02,186.0,26.0]
[1755272566630,55.46316723,186.01,186.0,26.0]
[1755272567028,70.5693828,186.01,186.0,26.0]
[1755272567528,70.5693828,186.01,186.0,1e-08]
[1755272567727,41.10621557,185.97,185.92,200.0]
[1755272567944,26.0,185.99,185.92,200.0]
[1755272568149,41.18,185.98,185.92,200.0]
[1755272568327,15.81621557,185.97,185.92,200.0]
[1755272568528,41.18,185.98,185.92,200.0]
[1755272568529,28.6793828,185.93,185.92,200.0]
[1755272568729,28.6793828,185.93,185.92,171.57934207]
[1755272568730,70.5693828,185.93,185.92,171.57934207]
[1755272568959,56.99621557,185.93,185.92,140.50280509]
[1755272569153,70.5693828,185.93,185.92,80.49758997]
[1755272569329,56.99621557,185.93,185.92,80.49758997]
[1755272569652,70.5693828,185.93,185.92,80.49758997]
[1755272569859,34.767751,185.93,185.92,80.49758997]
[1755272570031,75.967751,185.93,185.92,80.49758997]
[1755272570841,62.39458377,185.93,185.92,80.49758997]
[1755272571068,21.19458377,185.93,185.92,80.49758997]
[1755272571230,1.9248602,186.08,185.92,80.49758997]
[1755272571231,0.7,185.97,185.92,80.49758997]
[1755272571557,41.28,185.96,185.92,80.49758997]
[1755272572065,15.10621557,185.93,185.92,80.49758997]
[1755272572238,5.37748314,185.97,185.92,80.49758997]
[1755272572570,41.68,185.97,185.93,0.69]
[1755272572851,13.57316723,185.97,185.94,0.69]
[1755272573056,41.9,185.96,185.92,80.49758997]
[1755272573229,41.9,185.95,185.92,80.52758997]
[1755272573430,28.6793828,185.93,185.92,80.52758997]
[1755272573645,29.3793828,185.93,185.92,80.52758997]
[1755272573957,29.3793828,185.93,185.92,53.35558524]
[1755272573958,21.18458377,185.93,185.92,53.35558524]
[1755272574164,76.117751,185.93,185.92,53.35558524]
[1755272574365,76.817751,185.93,185.92,53.35558524]
[1755272574870,15.10621557,185.91,185.9,0.03]
[1755272575170,15.10621557,185.9,185.88,50.0]
[1755272575330,71.7393828,185.89,185.88,22.6999614]
[1755272575664,41.10621557,185.85,185.82,0.56897521]
[1755272575839,60.06064524,185.83,185.82,0.56897521]
[1755272576033,102.46064524,185.83,185.82,0.56897521]
[1755272576366,88.88747801,185.83,185.82,0.56897521]
[1755272576574,74.48126244,185.83,185.82,0.56897521]
[1755272576856,26.0,185.83,185.82,0.56897521]
[1755272577158,42.54,185.85,185.82,1.25897521]
[1755272577361,42.54,185.85,185.83,0.69]
[1755272577540,42.54,185.85,185.82,0.56897521]
[1755272577852,13.57316723,185.83,185.82,0.56897521]
[1755272578069,39.57316723,185.83,185.82,0.56897521]
[1755272578238,26.0,185.88,185.82,1.25897521]
[1755272578436,42.64,185.87,185.82,0.56897521]
[1755272578642,26.0,185.84,185.82,0.56897521]
[1755272578843,42.66,185.83,185.82,0.56897521]
[1755272579060,56.23316723,185.83,185.82,0.56897521]
[1755272579274,58.46621557,185.83,185.82,0.56897521]
[1755272579474,42.66,185.83,185.82,0.56897521]
[1755272579770,37.95405025,185.83,185.82,0.56897521]
[1755272580065,57.60847992,185.83,185.82,0.56897521]
[1755272580255,43.33531269,185.83,185.82,0.56897521]
[1755272580461,44.03531269,185.83,185.82,0.56897521]
[1755272580645,13.57316723,185.77,185.75,0.05]
[1755272580984,42.82,185.76,185.75,0.05]
[1755272581273,56.39316723,185.76,185.75,0.05]
[1755272581437,42.82,185.76,185.75,0.74]
[1755272582074,61.77645749,185.76,185.75,0.05]
[1755272582440,56.39316723,185.76,185.75,0.05]
[1755272582654,5.38329026,185.76,185.75,0.05]
[1755272582957,61.83645749,185.76,185.75,0.05]
[1755272583158,61.83645749,185.76,185.71,200.0]
[1755272583159,75.99468315,185.76,185.71,156.416001]
[1755272583377,39.57316723,185.72,185.71,155.82784927]
[1755272583540,44.58,185.72,185.71,156.51784927]
[1755272583866,60.765158,185.77,185.71,170.0910165]
[1755272584065,13.57316723,185.79,185.72,0.69]
[1755272584290,44.6,185.81,185.73,13.57316723]
[1755272584460,44.6,185.81,185.72,0.69]
[1755272584652,26.0,185.78,185.72,14.26316723]
[1755272584963,70.62,185.78,185.72,0.69]
[1755272585164,20.40026582,185.83,185.76,13.57316723]
[1755272585165,5.29405025,185.83,185.76,13.57316723]
[1755272585374,13.57316723,185.81,185.77,0.69]
[1755272585584,13.57316723,185.78,185.73,0.69]
[1755272585764,39.57316723,185.74,185.71,155.82784927]
[1755272585967,44.58,185.73,185.71,156.51784927]
[1755272586166,44.58,185.73,185.71,155.82784927]
[1755272586379,13.57316723,185.72,185.71,155.82784927]
[1755272586597,44.58,185.73,185.71,155.82784927]
[1755272586783,39.57316723,185.72,185.71,155.82784927]
[1755272587478,58.17316723,185.72,185.71,155.82784927]
[1755272587987,63.55761693,185.72,185.71,155.82784927]
[1755272588187,53.80702842,185.72,185.71,155.82784927]
[1755272588359,5.38155203,185.82,185.71,175.47565587]
[1755272588563,17.39542553,185.81,185.72,0.69]
[1755272588791,13.57316723,185.81,185.75,13.57316723]
[1755272588968,11.55164504,185.83,185.72,14.26316723]
[1755272589168,3.82405798,185.82,185.73,0.69]
[1755272589495,44.68,185.85,185.81,13.57316723]
[1755272589788,13.57316723,185.87,185.82,0.69]
[1755272590160,13.57316723,185.87,185.77,44.72]
[1755272590161,58.29316723,185.88,185.83,14.26316723]
[1755272590390,0.06,185.89,185.84,0.69]
[1755272590565,0.06,185.89,185.88,13.57316723]
[1755272590763,0.06,185.89,185.88,0.69]
[1755272590986,0.06,185.89,185.88,14.26316723]
[1755272591175,0.06,185.91,185.88,58.98316723]
[1755272591380,44.78,186.01,185.95,13.57316723]
[1755272591586,0.06,186.01,185.99,13.57316723]
[1755272591756,0.06,186.01,186.0,0.69]
[1755272591962,0.06,186.01,186.0,6.06634408]
[1755272592185,0.06,186.01,186.0,19.63951131]
[1755272592365,0.06,186.01,186.0,0.69]
[1755272592565,0.06,186.01,185.98,13.57316723]
[1755272592786,0.06,186.01,185.96,0.69]
[1755272592984,0.06,186.01,185.9,10.0]
[1755272592985,13.63316723,186.01,185.9,13.44792217]
[1755272593190,13.57316723,185.96,185.91,0.69]
[1755272593387,44.7,186.01,185.95,13.57316723]
[1755272593573,0.06,186.01,186.0,13.57316723]
[1755272593772,0.06,186.01,186.0,14.26316723]
[1755272593993,0.06,186.03,186.01,5.37605505]
[1755272594197,0.06,186.03,186.02,13.57316723]
[1755272594495,0.06,186.03,186.02,14.26316723]
[1755272594795,0.06,186.03,186.02,29.9069594]
[1755272595168,3.85589838,186.13,186.03,15.10621557]
[1755272595496,13.57316723,186.11,186.05,13.57316723]
[1755272595671,9.22854121,186.13,185.99,41.10621557]
[1755272595672,13.57316723,186.09,186.0,5.3763283]
[1755272595877,18.94806645,186.05,186.0,0.69]
[1755272596077,13.57316723,186.05,186.0,0.69]
[1755272596392,5.37403267,186.08,185.96,14.26316723]
[1755272596393,13.57316723,186.01,185.96,14.26316723]
[1755272596600,0.69,186.04,185.94,5.37807895]
[1755272596601,26.69,186.04,185.94,13.57316723]
[1755272596780,13.57316723,185.98,185.92,0.69]
[1755272597095,6.06403267,186.08,185.97,13.57316723]
[1755272597271,6.06403267,186.08,186.0,13.57316723]
[1755272597272,26.0,186.05,186.0,13.57316723]
[1755272597470,26.0,186.05,185.97,0.69]
[1755272597471,71.21,186.08,186.01,0.69]
[1755272597696,13.57316723,186.07,186.01,0.69]
[1755272597902,71.21,186.08,185.94,15.10621557]
[1755272597903,71.21,186.08,185.98,0.69]
[1755272598194,71.21,186.08,185.93,45.05783682]
[1755272598195,26.0,186.04,185.95,13.57316723]
[1755272598399,13.57316723,186.0,185.95,13.57316723]
[1755272598694,13.57316723,186.01,185.96,13.57316723]
[1755272598890,0.69,186.03,185.96,13.57316723]
[1755272599078,13.57316723,186.02,185.94,0.69]
[1755272599278,13.57316723,185.99,185.93,13.57316723]
[1755272599798,13.57316723,185.99,185.91,0.69]
[1755272600110,13.57316723,185.92,185.87,13.57316723]
[1755272600274,13.57316723,185.91,185.85,14.26316723]
[1755272600577,13.57316723,185.9,185.8,5.38190149]
[1755272600783,0.69,185.92,185.85,13.57316723]
[1755272600982,0.5,185.9,185.81,0.69]
[1755272601302,0.5,185.9,185.89,13.57316723]
[1755272601503,13.57316723,185.93,185.86,0.69]
[1755272601799,0.69,185.97,185.92,13.57316723]
[1755272602014,44.38,186.0,185.94,13.57316723]
[1755272602015,57.95316723,186.0,185.94,13.57316723]
[1755272602200,57.95316723,186.0,185.93,0.69]
[1755272602201,57.95316723,186.0,185.95,13.57316723]
[1755272602695,57.95316723,186.0,185.93,0.69]
[1755272602872,13.57316723,185.94,185.87,0.69]
[1755272603070,13.57316723,185.94,185.89,13.57316723]
[1755272603293,83.95316723,186.0,185.9,6.06923614]
[1755272603492,13.57316723,185.99,185.94,13.57316723]
[1755272603816,13.57316723,185.95,185.85,26.69]
[1755272603977,13.57316723,185.93,185.87,13.57316723]
[1755272604287,13.57316723,185.96,185.91,13.57316723]
[1755272604476,0.69,185.96,185.89,13.57316723]
[1755272604676,0.69,185.96,185.88,0.69]
[1755272604677,13.57316723,185.95,185.88,0.69]
[1755272604879,0.69,185.96,185.9,13.57316723]
[1755272605096,26.0,185.97,185.91,13.57316723]
[1755272605299,13.57316723,185.96,185.91,13.57316723]
[1755272605613,13.57316723,185.96,185.84,15.10621557]
[1755272605614,8.07551044,185.95,185.86,5.41033879]
[1755272605771,3.88665779,185.94,185.86,18.98350602]
[1755272606106,3.88665779,185.94,185.86,14.29316723]
[1755272606311,3.88665779,185.94,185.86,0.03]
[1755272606469,13.57316723,185.9,185.86,0.03]
[1755272606673,13.57316723,185.88,185.86,0.03]
[1755272607276,13.57316723,185.87,185.86,0.03]
[1755272607679,44.87,185.93,185.9,0.03]
[1755272607878,39.57316723,185.91,185.9,0.03]
[1755272608099,3.88766636,185.91,185.9,0.03]
[1755272608274,44.18,185.93,185.9,0.03]
[1755272608478,57.75316723,185.93,185.9,0.03]
[1755272608705,58.44316723,185.93,185.9,0.03]
[1755272609003,13.57316723,185.97,185.9,0.72]
[1755272609207,3.8924384,185.96,185.91,13.57316723]
[1755272609416,9.96037037,185.95,185.9,0.03]
[1755272609579,3.8924384,185.94,185.9,0.03]
[1755272609920,13.57316723,185.91,185.9,0.03]
[1755272610219,44.83,185.93,185.9,0.03]
[1755272610523,44.14,185.93,185.9,0.03]
[1755272610703,57.71316723,185.93,185.9,0.03]
[1755272611006,0.5,185.92,185.9,0.03]
[1755272611377,14.26316723,185.91,185.9,0.03]
[1755272611825,14.26316723,185.91,185.86,0.03]
[1755272611826,26.0,185.88,185.86,0.03]
[1755272612022,15.10621557,185.86,185.74,5.3838667]
[1755272612182,13.57316723,185.78,185.72,5.3844471]
[1755272612512,0.69,185.78,185.71,161.24256428]
[1755272612811,13.57316723,185.75,185.71,155.85784927]
[1755272613014,0.69,185.75,185.71,155.85784927]
[1755272613330,26.0,185.76,185.71,169.4310165]
[1755272613474,0.69,185.75,185.71,155.85784927]
[1755272613676,14.26316723,185.75,185.71,155.85784927]
[1755272613888,13.57316723,185.73,185.71,155.85784927]
[1755272614080,44.08,185.74,185.71,155.85784927]
[1755272614479,16.180793,185.86,185.73,13.57316723]
[1755272614682,44.13223074,185.88,185.75,13.57316723]
[1755272614683,39.57316723,185.81,185.75,13.57316723]
[1755272614903,13.57316723,185.78,185.71,161.24239385]
[1755272615082,0.69,185.8,185.71,161.24239385]
[1755272615410,0.69,185.8,185.72,13.57316723]
[1755272615626,0.69,185.8,185.71,161.24255068]
[1755272615627,13.57316723,185.77,185.71,155.85784927]
[1755272615799,13.57316723,185.76,185.71,155.85784927]
[1755272616004,43.98,185.77,185.71,155.85784927]
[1755272616005,13.57316723,185.74,185.71,155.85784927]
[1755272616216,14.26316723,185.75,185.71,155.85784927]
[1755272616392,13.57316723,185.75,185.71,155.85784927]
[1755272616595,43.98,185.77,185.71,169.4310165]
[1755272616922,43.96,185.77,185.71,161.9324781]
[1755272617096,57.53316723,185.77,185.71,156.54784927]
[1755272617298,57.53316723,185.77,185.71,155.85784927]
[1755272617299,13.57316723,185.75,185.71,155.85784927]
[1755272617526,44.65,185.77,185.71,155.85784927]
[1755272617727,13.57316723,185.75,185.71,155.85784927]
[1755272617891,43.96,185.77,185.71,155.85784927]
[1755272618095,43.96,185.77,185.71,174.8157431]
[1755272618308,57.53316723,185.77,185.71,161.24257587]
[1755272618627,43.88,185.79,185.75,13.57316723]
[1755272618916,13.57316723,185.79,185.71,161.93257587]
[1755272619226,43.86,185.79,185.74,13.57316723]
[1755272619625,13.57316723,185.78,185.72,5.3844497]
[1755272619935,13.57316723,185.78,185.71,161.24254859]
[1755272620226,43.86,185.79,185.71,161.24254859]
[1755272620227,44.55,185.79,185.71,155.85784927]
[1755272620405,13.57316723,185.74,185.71,155.85784927]
[1755272620606,57.37316723,185.74,185.71,155.85784927]
[1755272620813,43.8,185.74,185.71,155.85784927]
[1755272621120,43.82,185.76,185.72,0.69]
[1755272621317,43.82,185.76,185.71,155.85784927]
[1755272621636,4.0,185.81,185.75,13.57316723]
[1755272621829,57.67316723,185.8,185.74,13.57316723]
[1755272622019,57.67316723,185.8,185.71,161.24256023]
[1755272622020,44.1,185.8,185.71,161.24256023]
[1755272622197,0.69,185.79,185.71,155.85784927]
[1755272622396,13.57316723,185.73,185.71,155.85784927]
[1755272622593,44.28,185.74,185.71,155.85784927]
[1755272622846,44.28,185.74,185.71,11.38050666]
[1755272622847,28.6793828,185.72,185.71,11.38050666]
[1755272622998,26.0,185.64,185.63,50.0]
[1755272623212,70.58,185.64,185.63,50.0]
[1755272623552,5.38502961,185.7,185.63,50.0]
[1755272623721,13.57316723,185.65,185.63,50.0]
[1755272624051,26.0,185.67,185.63,50.0]
[1755272624218,13.57316723,185.64,185.63,50.0]
[1755272624419,26.0,185.64,185.63,45.0]
[1755272624624,40.17316723,185.64,185.63,45.0]
[1755272624842,85.11316723,185.64,185.63,45.0]
[1755272625343,85.11316723,185.64,185.55,0.1]
[1755272625344,73.83011641,185.64,185.55,0.1]
[1755272625549,2.81011641,185.64,185.56,0.7]
[1755272625755,28.81011641,185.64,185.59,13.57316723]
[1755272625932,13.57316723,185.68,185.62,13.57316723]
[1755272626121,13.57316723,185.68,185.61,0.03]
[1755272626122,45.3,185.66,185.63,0.7]
[1755272626431,45.3,185.66,185.61,0.03]
[1755272626432,26.0,185.62,185.61,0.03]
[1755272626640,39.57316723,185.62,185.61,0.03]
[1755272626867,54.6793828,185.62,185.61,1e-08]
[1755272627030,103.96819125,185.62,185.61,1e-08]
[1755272627432,45.44,185.62,185.61,1e-08]
[1755272627750,2.8109361,185.63,185.61,0.70000001]
[1755272627913,2.84800004,185.67,185.62,14.27316723]
[1755272628115,2.84800004,185.67,185.63,0.7]
[1755272628415,2.84800004,185.67,185.66,13.57316723]
[1755272628416,2.12800004,185.67,185.66,13.57316723]
[1755272628649,0.69,185.81,185.66,0.7]
[1755272628829,2.8087685,185.8,185.74,13.57316723]
[1755272629029,0.69,185.81,185.7,0.05]
[1755272629381,2.80794269,185.83,185.79,13.57316723]
[1755272629551,2.80794269,185.83,185.8,5.38208225]
[1755272629729,7.4022279,185.85,185.81,0.05]
[1755272629932,7.4022279,185.85,185.8,5.38208225]
[1755272630139,7.4022279,185.85,185.81,0.05]
[1755272630345,2.79136821,185.86,185.84,13.57316723]
[1755272630662,2.79136821,185.86,185.85,13.57316723]
[1755272630862,0.06,185.88,185.84,13.57316723]
[1755272631032,0.06,185.88,185.8,5.38208225]
[1755272631470,0.06,185.88,185.86,13.57316723]
[1755272631653,0.06,185.88,185.87,13.57316723]
[1755272631963,0.06,185.88,185.83,18.83438969]
[1755272632172,0.06,185.88,185.75,10.0]
[1755272632375,13.57316723,185.86,185.75,26.0]
[1755272632536,13.57316723,185.85,185.74,26.0]
[1755272632736,0.75,185.88,185.79,13.57316723]
[1755272632947,13.57316723,185.84,185.73,5.3841598]
[1755272633177,13.57316723,185.84,185.62,10.0]
[1755272633178,13.57316723,185.79,185.62,10.0]
[1755272633471,13.57316723,185.79,185.74,13.57316723]
[1755272633777,0.69,185.79,185.67,5.38589971]
[1755272633962,0.69,185.78,185.73,13.99944999]
[1755272634272,13.99944999,185.76,185.7,13.99944999]
[1755272634465,0.69,185.77,185.62,5.3873505]
[1755272634466,13.99944999,185.73,185.62,5.3873505]
[1755272634656,13.99944999,185.73,185.67,13.99944999]
[1755272634837,13.99944999,185.74,185.62,5.3873505]
[1755272635038,0.69,185.75,185.62,18.85572675]
[1755272635264,0.69,185.79,185.74,13.99944999]
[1755272635439,45.92,185.8,185.78,13.99944999]
[1755272635765,0.69,185.79,185.75,13.99944999]
[1755272636134,45.92,185.8,185.78,13.99944999]
[1755272636337,0.06,185.8,185.79,13.99944999]
[1755272636537,0.06,185.8,185.7,0.53850296]
[1755272636736,0.06,185.8,185.69,44.84861865]
[1755272636968,0.06,185.8,185.76,13.99944999]
[1755272637143,0.06,185.8,185.69,44.84861865]
[1755272637336,0.06,185.8,185.77,13.99944999]
[1755272637553,0.06,185.8,185.76,13.99944999]
[1755272637762,0.69,185.79,185.74,13.99944999]
[1755272638070,0.06,185.8,185.76,13.99944999]
[1755272638375,1.19,185.79,185.76,13.99944999]
[1755272638540,1.19,185.79,185.69,5.38531961]
[1755272638745,1.19,185.79,185.74,13.99944999]
[1755272638948,1.19,185.79,185.75,13.99944999]
[1755272639149,13.99944999,185.77,185.63,13.46763965]
[1755272639470,46.55,185.78,185.7,13.99944999]
[1755272639471,14.68944999,185.76,185.7,13.99944999]
[1755272639764,0.69,185.75,185.62,31.3873505]
[1755272639965,0.69,185.75,185.71,13.99944999]
[1755272640167,14.68944999,185.75,185.62,18.85572675]
[1755272640370,45.82,185.77,185.62,18.85572675]
[1755272640371,13.99944999,185.73,185.62,5.3873505]
[1755272640679,45.82,185.77,185.63,13.99944999]
[1755272640680,13.99944999,185.69,185.63,13.99944999]
[1755272640848,13.99944999,185.67,185.62,13.99944999]
[1755272641047,45.8,185.69,185.61,1e-08]
[1755272641048,14.68944999,185.66,185.61,1e-08]
[1755272641285,0.69,185.66,185.61,1e-08]
[1755272641457,0.69,185.65,185.61,1e-08]
[1755272641772,6.07649672,185.65,185.61,1e-08]
[1755272642073,0.69,185.64,185.61,1e-08]
[1755272642239,14.68944999,185.64,185.61,1e-08]
[1755272642440,26.0,185.69,185.61,1e-08]
[1755272642649,13.99944999,185.66,185.61,1e-08]
[1755272642888,14.68944999,185.64,185.61,1e-08]
[1755272643165,0.69,185.64,185.61,1e-08]
[1755272643582,0.69,185.69,185.63,13.99944999]
[1755272643739,13.99944999,185.67,185.61,13.99945]
[1755272643943,13.99944999,185.65,185.61,1e-08]
[1755272644171,13.99944999,185.64,185.61,1e-08]
[1755272644555,46.59,185.68,185.63,13.99944999]
[1755272644756,0.69,185.67,185.63,13.99944999]
[1755272645067,45.9,185.68,185.61,1e-08]
[1755272645241,0.69,185.66,185.61,1e-08]
[1755272645441,13.99944999,185.64,185.61,1e-08]
[1755272645684,13.99944999,185.63,185.61,1e-08]
[1755272645885,0.69,185.63,185.61,1e-08]
[1755272646100,5.38589971,185.67,185.61,1e-08]
[1755272646271,13.99944999,185.66,185.61,1e-08]
[1755272646465,0.69,185.67,185.63,13.99944999]
[1755272646672,0.69,185.66,185.61,13.99945]
[1755272647086,0.69,185.65,185.61,1e-08]
[1755272647604,54.09511681,185.68,185.64,13.99944999]
[1755272647605,49.39949322,185.68,185.64,13.99944999]
[1755272647910,49.39949322,185.68,185.57,0.03]
[1755272647911,15.10621557,185.61,185.39,50.0]
[1755272648067,8.0504324,185.6,185.4,0.03]
[1755272648268,0.69,185.59,185.44,13.99944999]
[1755272648475,0.69,185.59,185.5,5.39079497]
[1755272648773,0.69,185.59,185.48,0.03]
[1755272648774,45.84,185.58,185.48,5.42125829]
[1755272648987,45.84,185.58,185.45,13.48015792]
[1755272648988,13.99944999,185.57,185.46,5.39174413]
[1755272649201,45.84,185.58,185.54,13.99944999]
[1755272649509,45.82,185.64,185.55,0.03]
[1755272649672,59.81944999,185.64,185.51,200.03]
[1755272649870,45.82,185.64,185.59,13.99944999]
[1755272650093,46.53,185.65,185.6,13.99944999]
[1755272650264,14.68944999,185.64,185.54,0.03]
[1755272650602,14.68944999,185.64,185.58,13.99944999]
[1755272650766,45.8,185.66,185.54,0.03]
[1755272650973,45.8,185.66,185.62,13.99944999]
[1755272651172,0.69,185.65,185.54,0.03]
[1755272651479,45.8,185.66,185.64,13.99944999]
[1755272651909,45.8,185.66,185.59,5.38822134]
[1755272652067,13.99944999,185.63,185.54,5.38967338]
[1755272652266,13.99944999,185.62,185.53,5.41979027]
[1755272652465,0.69,185.61,185.53,5.38979027]
[1755272652690,13.99944999,185.63,185.53,5.38979027]
[1755272652895,13.99944999,185.64,185.53,5.38979027]
[1755272653106,0.69,185.62,185.58,13.99944999]
[1755272653315,46.49,185.66,185.61,13.99944999]
[1755272653517,59.79944999,185.66,185.54,0.03]
[1755272653723,0.69,185.65,185.6,13.99944999]
[1755272653935,0.69,185.65,185.56,5.38896162]
[1755272653936,13.99944999,185.62,185.56,13.99944999]
[1755272654094,14.68944999,185.64,185.58,13.99944999]
[1755272654458,45.76,185.65,185.62,13.99944999]
[1755272654719,46.45,185.65,185.61,13.99944999]
[1755272654924,0.69,185.64,185.6,13.99944999]
[1755272655093,45.76,185.65,185.6,13.99944999]
[1755272655426,45.76,185.65,185.61,13.99944999]
[1755272655592,0.69,185.64,185.56,18.86123308]
[1755272655797,14.68944999,185.64,185.56,5.38909247]
[1755272656021,0.69,185.64,185.59,13.99944999]
[1755272656228,0.69,185.64,185.56,5.38909247]
[1755272656525,0.69,185.63,185.59,13.99944999]
[1755272656703,46.47,185.63,185.58,13.99944999]
[1755272656907,45.78,185.63,185.55,18.86284019]
[1755272657236,0.69,185.71,185.62,13.99944999]
[1755272657529,13.99944999,185.65,185.56,0.03]
[1755272657694,13.99944999,185.64,185.55,5.38938291]
[1755272657901,45.88,185.64,185.59,13.99944999]
[1755272658203,46.57,185.64,185.55,5.38938291]
[1755272658404,45.88,185.64,185.63,13.99944999]
[1755272658613,0.69,185.71,185.63,13.99944999]
[1755272658908,45.84,185.7,185.64,5.38677009]
[1755272659127,13.99944999,185.68,185.62,14.02944999]
[1755272659448,0.69,185.72,185.67,13.99944999]
[1755272659632,0.69,185.72,185.62,5.41733372]
[1755272659633,0.69,185.72,185.69,13.99944999]
[1755272659795,46.59,185.72,185.69,13.99944999]
[1755272659998,0.69,185.71,185.62,5.41733372]